fUST/lending_fUST_20251006
["ID","MTS","AMOUNT","RATE_DAILY","PERIOD"]
[389557892,1759713050947,-271.671131,0.0001726,2]
[389557894,1759713050956,-1391.1,0.0001726,2]
[389557896,1759713050965,-500.0,0.0001726,2]
[389557898,1759713050975,-271.671131,0.0001726,2]
[389557900,1759713050984,-500.0,0.0001726,2]
[389557902,1759713050994,-151.0,0.0001726,2]
[389557904,1759713051005,-271.671131,0.0001726,2]
[389557906,1759713051014,-1166.83,0.0001726,2]
[389557908,1759713051023,-151.0,0.0001726,2]
[389557910,1759713051033,-5738.254316,0.0001726,2]
[389557912,1759713051043,-463.094162,0.0001726,2]
[389557914,1759713051052,-271.671131,0.0001726,2]
[389557916,1759713051061,-5738.254316,0.0001726,2]
[389557919,1759713051073,-463.094162,0.0001726,2]
[389557921,1759713051089,-231.759741,0.0001726,2]
[389557923,1759713051098,-151.0,0.0001726,2]
[389557925,1759713051108,-557.695997,0.0001726,2]
[389557927,1759713051117,-5738.254316,0.0001726,2]
[389557929,1759713051127,-463.094162,0.0001726,2]
[389557931,1759713051136,-231.759741,0.0001726,2]
[389557933,1759713051145,-151.0,0.0001726,2]
[389557935,1759713051154,-500.0,0.0001726,2]
[389557937,1759713051164,-557.695997,0.0001726,2]
[389557938,1759713051173,-463.094162,0.0001726,2]
[389557940,1759713051182,-231.759741,0.0001726,2]
[389557941,1759713051192,-557.695997,0.0001726,2]
[389557944,1759713051201,-500.0,0.0001726,2]
[389557945,1759713051210,-638.55,0.0001726,2]
[389557947,1759713051219,-5738.254316,0.0001726,2]
[389557950,1759713051232,-231.759741,0.0001726,2]
[389557951,1759713051241,-9316.12,0.0001726,2]
[389557953,1759713051251,-557.695997,0.0001726,2]
[389557955,1759713051260,-500.0,0.0001726,2]
[389557957,1759713051269,-1139.0,0.0001726,2]
[389557959,1759713051279,-3120.92,0.0001726,2]
[389557961,1759713051288,-500.0,0.0001726,2]
[389557963,1759713051297,-153.679598,0.0001726,2]
[389557965,1759713051307,-153.679598,0.0001726,2]
[389557967,1759713051316,-500.0,0.0001726,2]
[389557969,1759713051326,-153.679598,0.0001726,2]
[389557971,1759713051335,-500.0,0.0001726,2]
[389557973,1759713051344,-679.0896,0.0001726,2]
[389557975,1759713051353,-153.679598,0.0001726,2]
[389557977,1759713051362,-679.0896,0.0001726,2]
[389557979,1759713051371,-500.0,0.0001726,2]
[389557981,1759713051380,-679.0896,0.0001726,2]
[389557983,1759713051390,-500.0,0.0001726,2]
[389557985,1759713051399,-1120.6,0.0001726,2]
[389557987,1759713051409,-679.0896,0.0001726,2]
[389557989,1759713051418,-500.0,0.0001726,2]
[389557991,1759713051427,-446.61754,0.0001726,2]
[389557993,1759713051436,-446.61754,0.0001726,2]
[389557995,1759713051445,-151.0,0.0001726,2]
[389557997,1759713051454,-500.0,0.0001726,2]
[389557999,1759713051464,-446.61754,0.0001726,2]
[389558001,1759713051473,-863.63,0.0001726,2]
[389558003,1759713051482,-446.61754,0.0001726,2]
[389558005,1759713051491,-500.0,0.0001726,2]
[389558007,1759713051501,-500.0,0.0001726,2]
[389558009,1759713051511,-500.0,0.0001726,2]
[389558011,1759713051520,-10365.58,0.0001726,2]
[389558013,1759713051530,-569.34,0.0001726,2]
[389558015,1759713051538,-734.39,0.0001726,2]
[389558017,1759713051547,-256.862147,0.0001726,2]
[389558019,1759713051557,-256.862147,0.0001726,2]
[389558021,1759713051566,-500.0,0.0001726,2]
[389558023,1759713051576,-500.0,0.0001726,2]
[389558025,1759713051585,-256.862147,0.0001726,2]
[389558027,1759713051594,-500.0,0.0001726,2]
[389558029,1759713051603,-256.862147,0.0001726,2]
[389558031,1759713051613,-500.0,0.0001726,2]
[389558033,1759713051622,-500.0,0.0001726,2]
[389558035,1759713051631,-500.0,0.0001726,2]
[389558037,1759713051641,-4391.44,0.0001726,2]
[389558039,1759713051650,-1937.56,0.0001726,2]
[389558041,1759713051659,-500.0,0.0001726,2]
[389558043,1759713051668,-166.67,0.0001726,2]
[389558045,1759713051677,-151.0,0.0001726,2]
[389558047,1759713051686,-500.0,0.0001726,2]
[389558049,1759713051695,-151.0,0.0001726,2]
[389558051,1759713051705,-2424.24,0.0001726,2]
[389558053,1759713051713,-500.0,0.0001726,2]
[389558055,1759713051722,-500.0,0.0001726,2]
[389558057,1759713051731,-5359.2,0.0001726,2]
[389558059,1759713051740,-151.0,0.0001726,2]
[389558061,1759713051750,-1658.6,0.0001726,2]
[389558063,1759713051759,-151.0,0.0001726,2]
[389558065,1759713051768,-151.0,0.0001726,2]
[389558067,1759713051777,-500.0,0.0001726,2]
[389558069,1759713051787,-500.0,0.00017273,2]
[389558071,1759713051796,-500.0,0.00017273,2]
[389558073,1759713051805,-500.0,0.00017273,2]
[389558075,1759713051814,-500.0,0.00017273,2]
[389558077,1759713051823,-500.0,0.00017273,2]
[389558078,1759713051832,-500.0,0.00017273,2]
[389558080,1759713051841,-261.31371346,0.00017273,2]
[389558082,1759713051850,-500.0,0.00017273,2]
[389558084,1759713051859,-500.0,0.00017273,2]
[389558086,1759713051868,-500.0,0.00017273,2]
[389558088,1759713051877,-500.0,0.00017273,2]
[389558090,1759713051888,-300.0,0.00017273,2]
[389558092,1759713051897,-500.0,0.00017273,2]
[389558094,1759713051906,-500.0,0.00017273,2]
[389558096,1759713051915,-265.20312553,0.00017273,2]
[389558098,1759713051924,-374.25063697,0.00017273,2]
[389558100,1759713051934,-393.0,0.00017278,2]
[389558102,1759713051943,-151.0,0.000173,2]
[389558104,1759713051953,-151.0,0.000173,2]
[389558106,1759713051963,-151.0,0.00017318,2]
[389558108,1759713051974,-151.0,0.00017318,2]
[389558110,1759713051983,-285.070398,0.00017318,2]
[389558112,1759713051992,-151.0,0.000174,2]
[389558114,1759713052003,-151.0,0.000174,2]
[389558116,1759713052012,-176.90347516,0.00017434,2]
[389558118,1759713052021,-603.33545498,0.00017496,2]
[389558120,1759713052030,-499.999999,0.000175,2]
[389558122,1759713052039,-4456.62156325,0.00017506,2]
[389558124,1759713052051,-19292.2273969,0.00017524,2]
[389558125,1759713052061,-245.0,0.00017534,2]
[389558127,1759713052071,-151.0,0.00017534,2]
[389558129,1759713052084,-500.0,0.00017534,2]
[389558131,1759713052094,-500.0,0.00017534,2]
[389558133,1759713052103,-151.0,0.00017534,2]
[389558135,1759713052115,-1397.0,0.00017534,2]
[389558137,1759713052124,-500.0,0.00017534,2]
[389558139,1759713052133,-500.0,0.00017534,2]
[389558141,1759713052143,-500.0,0.00017534,2]
[389558143,1759713052155,-943.41,0.00017534,2]
[389558145,1759713052164,-527.53,0.00017534,2]
[389558147,1759713052172,-151.0,0.00017534,2]
[389558149,1759713052182,-151.0,0.00017534,2]
[389558151,1759713052190,-151.0,0.00017534,2]
[389558153,1759713052199,-513.93146398,0.00017534,2]
[389558155,1759713052208,-151.0,0.00017534,2]
[389558157,1759713052219,-151.0,0.00017534,2]
[389558159,1759713052228,-151.0,0.00017534,2]
[389558161,1759713052237,-500.0,0.00017534,2]
[389558163,1759713052246,-151.0,0.00017534,2]
[389558165,1759713052257,-500.0,0.00017534,2]
[389558167,1759713052266,-151.0,0.00017534,2]
[389558169,1759713052274,-151.0,0.00017534,2]
[389558171,1759713052283,-151.0,0.00017534,2]
[389558173,1759713052292,-500.0,0.00017534,2]
[389558175,1759713052301,-723.41,0.00017534,2]
[389558177,1759713052310,-606.57,0.00017534,2]
[389558179,1759713052320,-151.0,0.00017534,2]
[389558181,1759713052329,-151.0,0.00017534,2]
[389558183,1759713052338,-151.0,0.00017534,2]
[389558185,1759713052346,-291.277968,0.00017534,2]
[389558187,1759713052355,-875.15,0.00017534,2]
[389558189,1759713052365,-500.0,0.00017534,2]
[389558191,1759713052374,-636.62,0.00017534,2]
[389558192,1759713052383,-312.6286503,0.00017534,2]
[389558194,1759713052392,-500.0,0.00017534,2]
[389558196,1759713052401,-151.0,0.00017534,2]
[389558198,1759713052410,-151.0,0.00017534,2]
[389558200,1759713052420,-271.82276,0.00017534,2]
[389558202,1759713052429,-500.0,0.00017534,2]
[389558204,1759713052438,-160.376868,0.00017534,2]
[389558206,1759713052447,-776.19,0.00017534,2]
[389558208,1759713052456,-221.51,0.00017534,2]
[389558210,1759713052465,-151.0,0.00017534,2]
[389558212,1759713052475,-813.27,0.00017534,2]
[389558214,1759713052484,-151.0,0.00017534,2]
[389558216,1759713052493,-500.0,0.00017534,2]
[389558218,1759713052503,-500.0,0.00017534,2]
[389558220,1759713052512,-500.0,0.00017534,2]
[389558222,1759713052521,-500.0,0.00017534,2]
[389558224,1759713052531,-430.89792015,0.00017534,2]
[389558226,1759713052540,-151.0,0.00017534,2]
[389558229,1759713052549,-500.0,0.00017534,2]
[389558230,1759713052559,-258.170698,0.00017534,2]
[389558232,1759713052567,-654.99,0.00017534,2]
[389558234,1759713052576,-151.0,0.00017534,2]
[389558236,1759713052586,-151.0,0.00017534,2]
[389558238,1759713052595,-151.0,0.00017534,2]
[389558240,1759713052604,-151.0,0.00017534,2]
[389558243,1759713052614,-535.6,0.00017534,2]
[389558244,1759713052623,-500.0,0.00017534,2]
[389558246,1759713052633,-500.0,0.00017534,2]
[389558248,1759713052642,-887.22,0.00017534,2]
[389558250,1759713052651,-151.0,0.00017534,2]
[389558252,1759713052660,-500.0,0.00017534,2]
[389558254,1759713052670,-200.829873,0.00017534,2]
[389558256,1759713052679,-500.0,0.00017534,2]
[389558258,1759713052688,-151.0,0.00017534,2]
[389558260,1759713052698,-151.0,0.00017534,2]
[389558262,1759713052707,-277.640282,0.00017534,2]
[389558264,1759713052716,-765.64,0.00017534,2]
[389558266,1759713052725,-500.0,0.00017534,2]
[389558268,1759713052735,-587.59,0.00017534,2]
[389558270,1759713052744,-1102.28,0.00017534,2]
[389558272,1759713052754,-500.0,0.00017534,2]
[389558274,1759713052763,-517.45,0.00017534,2]
[389558276,1759713052773,-151.0,0.00017534,2]
[389558278,1759713052782,-151.0,0.00017534,2]
[389558280,1759713052791,-530.71,0.00017534,2]
[389558282,1759713052800,-500.27,0.00017534,2]
[389558284,1759713052809,-151.0,0.00017534,2]
[389558286,1759713052819,-151.0,0.00017534,2]
[389558303,1759713052970,-151.0,0.00017534,2]
[389558305,1759713052980,-152.92,0.00017534,2]
[389558307,1759713052990,-500.0,0.00017534,2]
[389558309,1759713052999,-211.56223179,0.00017534,2]
[389558311,1759713053009,-1384.45,0.00017534,2]
[389558313,1759713053019,-151.0,0.00017534,2]
[389558315,1759713053028,-151.0,0.00017534,2]
[389558317,1759713053037,-151.0,0.00017534,2]
[389558319,1759713053047,-500.0,0.00017534,2]
[389558321,1759713053056,-500.0,0.00017534,2]
[389558323,1759713053064,-500.0,0.00017534,2]
[389558325,1759713053076,-500.0,0.00017534,2]
[389558327,1759713053087,-180.638359,0.00017534,2]
[389558329,1759713053096,-500.0,0.00017534,2]
[389558331,1759713053105,-541.64,0.00017534,2]
[389558333,1759713053113,-500.0,0.00017534,2]
[389558335,1759713053124,-500.0,0.00017534,2]
[389558337,1759713053133,-151.0,0.00017534,2]
[389558339,1759713053142,-151.0,0.00017534,2]
[389558341,1759713053152,-236.693171,0.00017534,2]
[389558343,1759713053161,-695.25,0.00017534,2]
[389558345,1759713053170,-500.0,0.00017534,2]
[389558347,1759713053179,-1387.11,0.00017534,2]
[389558349,1759713053189,-151.0,0.00017534,2]
[389558351,1759713053198,-984.94,0.00017534,2]
[389558353,1759713053207,-1508.02,0.00017534,2]
[389558355,1759713053216,-626.5,0.00017534,2]
[389558357,1759713053225,-846.36,0.00017534,2]
[389558359,1759713053234,-3829.66,0.00017534,2]
[389558361,1759713053243,-500.0,0.00017534,2]
[389558363,1759713053252,-838.38,0.00017534,2]
[389558365,1759713053261,-500.0,0.00017534,2]
[389558367,1759713053270,-512.2,0.00017534,2]
[389558369,1759713053279,-7271.63,0.00017534,2]
[389558371,1759713053288,-868.51,0.00017534,2]
[389558373,1759713053297,-151.0,0.00017534,2]
[389558375,1759713053307,-585.61415,0.00017534,2]
[389558377,1759713053316,-500.0,0.00017534,2]
[389558379,1759713053326,-585.61415,0.00017534,2]
[389558381,1759713053336,-585.61415,0.00017534,2]
[389558383,1759713053345,-585.61415,0.00017534,2]
[389558385,1759713053354,-623.23,0.00017534,2]
[389558387,1759713053363,-10604.76,0.00017534,2]
[389558389,1759713053372,-151.0,0.00017534,2]
[389558391,1759713053382,-1306.95,0.00017534,2]
[389558393,1759713053391,-169.410077,0.00017534,2]
[389558395,1759713053400,-1022.02,0.00017534,2]
[389558397,1759713053410,-169.410077,0.00017534,2]
[389558399,1759713053418,-151.0,0.00017534,2]
[389558401,1759713053428,-500.0,0.00017534,2]
[389558403,1759713053438,-169.410077,0.00017534,2]
[389558405,1759713053447,-349.929601,0.00017534,2]
[389558407,1759713053455,-151.0,0.00017534,2]
[389558409,1759713053465,-1668.52,0.00017534,2]
[389558411,1759713053474,-169.410077,0.00017534,2]
[389558413,1759713053483,-349.929601,0.00017534,2]
[389558414,1759713053492,-151.0,0.00017534,2]
[389558417,1759713053502,-151.0,0.00017534,2]
[389558419,1759713053511,-2980.25,0.00017534,2]
[389558421,1759713053521,-151.0,0.00017534,2]
[389558423,1759713053531,-349.929601,0.00017534,2]
[389558424,1759713053540,-151.0,0.00017534,2]
[389558427,1759713053549,-349.929601,0.00017534,2]
[389558429,1759713053558,-151.0,0.00017534,2]
[389558431,1759713053567,-1326.38,0.00017534,2]
[389558433,1759713053577,-1794.78,0.00017534,2]
[389558435,1759713053586,-500.0,0.00017534,2]
[389558437,1759713053596,-1089.97,0.00017534,2]
[389558439,1759713053605,-500.0,0.00017534,2]
[389558440,1759713053613,-3319.91,0.00017534,2]
[389558442,1759713053623,-637.43,0.00017534,2]
[389558445,1759713053633,-626.33,0.00017534,2]
[389558447,1759713053643,-500.0,0.00017534,2]
[389558449,1759713053654,-3422.7,0.00017534,2]
[389558451,1759713053663,-1166.32,0.00017534,2]
[389558453,1759713053672,-500.0,0.00017534,2]
[389558455,1759713053682,-4273.81,0.00017534,2]
[389558457,1759713053691,-151.0,0.00017534,2]
[389558459,1759713053700,-151.0,0.00017534,2]
[389558461,1759713053710,-151.0,0.00017534,2]
[389558462,1759713053719,-327.726662,0.00017534,2]
[389558464,1759713053729,-500.0,0.00017534,2]
[389558466,1759713053739,-151.0,0.00017534,2]
[389558468,1759713053748,-151.0,0.00017534,2]
[389558470,1759713053758,-327.726662,0.00017534,2]
[389558472,1759713053768,-327.726662,0.00017534,2]
[389558474,1759713053778,-500.0,0.00017534,2]
[389558476,1759713053787,-327.726662,0.00017534,2]
[389558478,1759713053798,-1431.63,0.00017534,2]
[389558480,1759713053807,-500.0,0.00017534,2]
[389558482,1759713053817,-1125.66,0.00017534,2]
[389558484,1759713053827,-500.0,0.00017534,2]
[389558486,1759713053836,-151.0,0.00017534,2]
[389558488,1759713053846,-151.0,0.00017534,2]
[389558490,1759713053857,-151.0,0.00017534,2]
[389558492,1759713053866,-985.35,0.00017534,2]
[389558494,1759713053876,-151.0,0.00017534,2]
[389558496,1759713053885,-500.0,0.00017534,2]
[389558498,1759713053895,-332.506667,0.00017534,2]
[389558500,1759713053904,-1514.11,0.00017534,2]
[389558502,1759713053913,-999.19,0.00017534,2]
[389558504,1759713053922,-332.506667,0.00017534,2]
[389558506,1759713053932,-151.0,0.00017534,2]
[389558507,1759713053942,-500.0,0.00017534,2]
[389558509,1759713053952,-280.020318,0.00017534,2]
[389558511,1759713053962,-151.0,0.00017534,2]
[389558513,1759713053971,-332.506667,0.00017534,2]
[389558515,1759713053981,-280.020318,0.00017534,2]
[389558517,1759713053991,-151.0,0.00017534,2]
[389558520,1759713054002,-723.33,0.00017534,2]
[389558521,1759713054011,-332.506667,0.00017534,2]
[389558523,1759713054020,-151.0,0.00017534,2]
[389558525,1759713054029,-280.020318,0.00017534,2]
[389558527,1759713054038,-2023.81,0.00017534,2]
[389558529,1759713054047,-151.0,0.00017534,2]
[389558531,1759713054057,-280.020318,0.00017534,2]
[389558533,1759713054066,-151.0,0.00017534,2]
[389558535,1759713054077,-500.0,0.00017534,2]
[389558537,1759713054088,-151.0,0.00017534,2]
[389558539,1759713054097,-500.0,0.00017534,2]
[389558540,1759713054106,-500.0,0.00017534,2]
[389558543,1759713054115,-151.0,0.00017534,2]
[389558544,1759713054125,-906.92,0.00017534,2]
[389558546,1759713054134,-500.0,0.00017534,2]
[389558548,1759713054143,-151.0,0.00017534,2]
[389558550,1759713054156,-500.0,0.00017534,2]
[389558552,1759713054165,-151.0,0.00017534,2]
[389558554,1759713054176,-500.0,0.00017534,2]
[389558556,1759713054185,-4035.12,0.00017534,2]
[389558558,1759713054194,-151.0,0.00017534,2]
[389558560,1759713054203,-500.0,0.00017534,2]
[389558562,1759713054213,-295.146811,0.00017534,2]
[389558564,1759713054222,-295.146811,0.00017534,2]
[389558566,1759713054232,-500.0,0.00017534,2]
[389558568,1759713054242,-295.146811,0.00017534,2]
[389558570,1759713054252,-295.146811,0.00017534,2]
[389558572,1759713054262,-500.0,0.00017534,2]
[389558574,1759713054272,-500.0,0.00017534,2]
[389558576,1759713054281,-500.0,0.00017534,2]
[389558578,1759713054290,-581.71,0.00017534,2]
[389558580,1759713054299,-500.0,0.00017534,2]
[389558582,1759713054308,-645.97,0.00017534,2]
[389558583,1759713054318,-151.0,0.00017534,2]
[389558585,1759713054328,-500.0,0.00017534,2]
[389558587,1759713054337,-151.0,0.00017534,2]
[389558589,1759713054347,-151.0,0.00017534,2]
[389558591,1759713054357,-271.671131,0.00017534,2]
[389558593,1759713054367,-1391.1,0.00017534,2]
[389558595,1759713054376,-500.0,0.00017534,2]
[389558597,1759713054388,-271.671131,0.00017534,2]
[389558599,1759713054399,-500.0,0.00017534,2]
[389558601,1759713054409,-151.0,0.00017534,2]
[389558603,1759713054419,-271.671131,0.00017534,2]
[389558605,1759713054429,-1166.83,0.00017534,2]
[389558607,1759713054438,-151.0,0.00017534,2]
[389558609,1759713054448,-5738.254316,0.00017534,2]
[389558611,1759713054457,-463.094162,0.00017534,2]
[389558613,1759713054466,-271.671131,0.00017534,2]
[389558615,1759713054477,-5738.254316,0.00017534,2]
[389558617,1759713054487,-463.094162,0.00017534,2]
[389558619,1759713054497,-231.759741,0.00017534,2]
[389558621,1759713054507,-151.0,0.00017534,2]
[389558623,1759713054517,-557.695997,0.00017534,2]
[389558625,1759713054527,-5738.254316,0.00017534,2]
[389558627,1759713054536,-463.094162,0.00017534,2]
[389558629,1759713054546,-231.759741,0.00017534,2]
[389558631,1759713054555,-151.0,0.00017534,2]
[389558633,1759713054564,-557.695997,0.00017534,2]
[389558635,1759713054574,-463.094162,0.00017534,2]
[389558637,1759713054583,-231.759741,0.00017534,2]
[389558639,1759713054592,-557.695997,0.00017534,2]
[389558641,1759713054602,-356.71982264,0.00017534,2]
[389558643,1759713054611,-638.55,0.00017534,2]
[389558645,1759713054621,-5738.254316,0.00017534,2]
[389558647,1759713054631,-9316.12,0.00017534,2]
[389558649,1759713054640,-231.759741,0.00017534,2]
[389558651,1759713054648,-557.695997,0.00017534,2]
[389558653,1759713054658,-500.0,0.00017534,2]
[389558655,1759713054670,-1139.0,0.00017534,2]
[389558657,1759713054680,-3120.92,0.00017534,2]
[389558659,1759713054689,-500.0,0.00017534,2]
[389558661,1759713054699,-153.679598,0.00017534,2]
[389558663,1759713054708,-153.679598,0.00017534,2]
[389558665,1759713054717,-500.0,0.00017534,2]
[389558667,1759713054727,-153.679598,0.00017534,2]
[389558668,1759713054735,-500.0,0.00017534,2]
[389558670,1759713054745,-679.0896,0.00017534,2]
[389558672,1759713054755,-153.679598,0.00017534,2]
[389558674,1759713054764,-679.0896,0.00017534,2]
[389558676,1759713054773,-500.0,0.00017534,2]
[389558678,1759713054783,-679.0896,0.00017534,2]
[389558680,1759713054792,-500.0,0.00017534,2]
[389558682,1759713054801,-1120.6,0.00017534,2]
[389558684,1759713054811,-679.0896,0.00017534,2]
[389558686,1759713054821,-500.0,0.00017534,2]
[389558688,1759713054830,-446.61754,0.00017534,2]
[389558690,1759713054839,-446.61754,0.00017534,2]
[389558692,1759713054849,-151.0,0.00017534,2]
[389558694,1759713054858,-446.61754,0.00017534,2]
[389558696,1759713054867,-863.63,0.00017534,2]
[389558698,1759713054876,-446.61754,0.00017534,2]
[389558700,1759713054885,-500.0,0.00017534,2]
[389558702,1759713054894,-500.0,0.00017534,2]
[389558704,1759713054904,-500.0,0.00017534,2]
[389558706,1759713054912,-10365.58,0.00017534,2]
[389558708,1759713054922,-569.34,0.00017534,2]
[389558709,1759713054931,-734.39,0.00017534,2]
[389558711,1759713054940,-1000.0,0.00017534,2]
[389558713,1759713054949,-256.862147,0.00017534,2]
[389558715,1759713054959,-1000.0,0.00017534,2]
[389558717,1759713054968,-1000.0,0.00017534,2]
[389558719,1759713054978,-1000.0,0.00017534,2]
[389558721,1759713054987,-256.862147,0.00017534,2]
[389558723,1759713054997,-288.30340522,0.00017534,2]
[389558725,1759713055007,-1000.0,0.00017534,2]
[389558727,1759713055016,-1000.0,0.00017534,2]
[389558729,1759713055025,-500.0,0.00017534,2]
[389558731,1759713055034,-256.862147,0.00017534,2]
[389558733,1759713055044,-500.0,0.00017534,2]
[389558735,1759713055053,-256.862147,0.00017534,2]
[389558737,1759713055062,-500.0,0.00017534,2]
[389558739,1759713055071,-500.0,0.00017534,2]
[389558741,1759713055084,-4391.44,0.00017534,2]
[389558743,1759713055093,-1937.56,0.00017534,2]
[389558745,1759713055103,-500.0,0.00017534,2]
[389558747,1759713055111,-151.0,0.00017534,2]
[389558749,1759713055122,-500.0,0.00017534,2]
[389558751,1759713055132,-151.0,0.00017534,2]
[389558753,1759713055141,-2424.24,0.00017534,2]
[389558754,1759713055152,-500.0,0.00017534,2]
[389558756,1759713055161,-500.0,0.00017534,2]
[389558758,1759713055171,-5359.2,0.00017534,2]
[389558760,1759713055180,-151.0,0.00017534,2]
[389558762,1759713055189,-1658.6,0.00017534,2]
[389558764,1759713055197,-151.0,0.00017534,2]
[389558766,1759713055207,-151.0,0.00017534,2]
[389558768,1759713055216,-500.0,0.00017534,2]
[389558770,1759713055225,-372.0,0.00017538,2]
[389558772,1759713055236,-492.44963932,0.00017561,2]
[389558774,1759713055245,-500.0,0.00017638,2]
[389558776,1759713055254,-500.0,0.00017638,2]
[389558778,1759713055263,-500.0,0.00017648,2]
[389558780,1759713055272,-500.0,0.00017648,2]
[389558782,1759713055285,-500.0,0.00017648,2]
[389558784,1759713055294,-500.0,0.00017648,2]
[389558786,1759713055303,-500.0,0.00017648,2]
[389558788,1759713055312,-165.11033691,0.00017648,2]
[389558790,1759713055321,-437.29021237,0.00017648,2]
[389558792,1759713055330,-507.16512979,0.00017648,2]
[389558793,1759713055338,-500.0,0.00017648,2]
[389558795,1759713055348,-500.0,0.00017648,2]
[389558797,1759713055356,-191.470474,0.0001767,2]
[389558799,1759713055365,-169.410077,0.0001767,2]
[389558801,1759713055374,-169.410077,0.0001767,2]
[389558803,1759713055384,-151.0,0.0001767,2]
[389558805,1759713055393,-169.410077,0.0001767,2]
[389558807,1759713055403,-349.929601,0.0001767,2]
[389558809,1759713055411,-151.0,0.0001767,2]
[389558811,1759713055420,-349.929601,0.0001767,2]
[389558813,1759713055429,-169.410077,0.0001767,2]
[389558815,1759713055438,-281.67825,0.0001767,2]
[389558817,1759713055447,-181.592506,0.0001767,2]
[389558819,1759713055456,-151.0,0.0001767,2]
[389558821,1759713055466,-349.929601,0.0001767,2]
[389558823,1759713055475,-151.0,0.0001767,2]
[389558825,1759713055484,-349.929601,0.0001767,2]
[389558827,1759713055493,-151.0,0.0001767,2]
[389558829,1759713055503,-151.0,0.0001767,2]
[389558831,1759713055516,-151.0,0.0001767,2]
[389558832,1759713055526,-151.0,0.0001767,2]
[389558834,1759713055535,-327.726662,0.0001767,2]
[389558836,1759713055544,-327.726662,0.0001767,2]
[389558838,1759713055554,-151.0,0.0001767,2]
[389558840,1759713055563,-327.726662,0.0001767,2]
[389558842,1759713055572,-327.726662,0.0001767,2]
[389558844,1759713055581,-151.0,0.0001767,2]
[389558846,1759713055590,-151.0,0.0001767,2]
[389558848,1759713055600,-286.35482,0.0001767,2]
[389558850,1759713055610,-332.506667,0.0001767,2]
[389558852,1759713055619,-332.506667,0.0001767,2]
[389558854,1759713055627,-332.506667,0.0001767,2]
[389558856,1759713055637,-332.506667,0.0001767,2]
[389558858,1759713055647,-500.0,0.000177,2]
[389558860,1759713055656,-500.0,0.000177,2]
[389558862,1759713055665,-500.0,0.000177,2]
[389558864,1759713055676,-500.0,0.00017701,2]
[389558866,1759713055687,-484.14111895,0.00017701,2]
[389558868,1759713055701,-200.15181513,0.00017701,2]
[389558870,1759713055710,-500.0,0.00017701,2]
[389558872,1759713055719,-500.0,0.00017701,2]
[389558873,1759713055728,-452.82565042,0.00017701,2]
[389558875,1759713055737,-200.24989605,0.00017701,2]
[389558877,1759713055746,-500.0,0.00017701,2]
[389558879,1759713055755,-500.0,0.00017701,2]
[389558881,1759713055765,-500.0,0.00017701,2]
[389558883,1759713055774,-159.58690648,0.00017701,2]
[389558885,1759713055783,-500.0,0.00017701,2]
[389558887,1759713055793,-500.0,0.00017701,2]
[389558889,1759713055802,-2142.4243663,0.0001772,2]
[389558891,1759713055811,-340.62908927,0.00017733,2]